{"text_format":"1","workbook":"xlsx","n_sheets":3,"sheets":["QUOTE FORM","DATA (don't delete)","Hardware Selection"],"not_rendered":{"charts":0,"images":4,"macros":1,"external_links":0,"defined_names":21,"comments":0,"pivot_tables":0},"unopened":[],"bounds":{"document_bytes":16777216,"sheet_cells":100000,"rows_first":2000,"rows_last":500,"rows_between":2000,"halvings":0,"cell_chars":16384,"cell_head_chars":4096},"cells_cut":0,"cells_raw":0,"read":"whole","date_system":"1900"}

{"sheet":"QUOTE FORM","index":0,"n_rows":63,"n_cols":23,"rows_kept":63,"cut":false,"hidden":false,"merged":[[18,8,18,11],[5,0,5,1],[11,2,11,3],[12,2,12,3],[13,2,13,3],[17,2,17,6],[5,2,5,3],[6,2,6,3],[7,2,7,3],[9,2,9,3],[10,2,10,3]]}
[null,null,null,null,"QUOTE REQUEST FORM",null,null,null,"To edit spreadsheet - Select \"Enable Editing\" above"]
[]
["E-mail:","adsystems.estimating@allegion.com",null,null,null,null,null,null,"Frame Opening = Clear Opening Plus (+) 4.5\""]
["Phone:","425.740.6011"]
[]
["DATE:",null,null,null,"Date of Delivery:"]
["Company Name:",null,null,null,"Bid Date:"]
["Company Address:",null,null,null,"Architect Name:"]
["City, State Zip Code:",null,null,null,"Architect Location:"]
["Contact Name:",null,null,null,"End User:"]
["Contact Email:"]
["Contact Phone:"]
["Project Name:",null,"Pauls Project"]
["Project Address:"]
["City, State Zip Code:"]
["Specs Attached?"]
["Approved Equals?"]
[]
["PLEASE INDICATE WHICH DIMENSIONS YOU WILL BE LISTING BY USING DROP DOWN SELECTION TO THE RIGHT",null,null,null,null,null,null,null,"Clear Opening Size"]
["Actual dimensions will then be entered in the form below "]
["To add more doors - Insert Row above last line"]
[]
["Elevation \nNumber","Door Qty","Width","Height","Elevation Configuration","Frame Finish","Door Leaf Type","Wood Door Face/Veneer","Is FSC Required \nfor Wood Doors","Is FSC Required \nfor Wood Doors","No Added UF","Aluminum Door Finish","Door Glass Type","Glass Size","Wall Thickness","Pulls/Lock Type\n(See New Hardware Selcetion Guide)","Lock Description","AutoMotion\nAuto Operator","Spring Loaded Mechanical Self Closer (Upgraded Add-On Option In Addition to Our Standard Soft Self Close Dampeners)","Acoustic \nDrop-Down Seal","Magnetic Lock","Rating","Lead Lined"]
[null,null,null,null,null,null,null,null,null,null,null,null,null,null,null,null,{"$f":"VLOOKUP(P24,'Hardware Selection'!$B$1:$F$27,5)","v":{"$error":"#N/A"}}]
[null,null,null,null,null,null,null,null,null,null,null,null,null,null,null,null,{"$f":"VLOOKUP(P25,'Hardware Selection'!$B$1:$F$27,5)","v":{"$error":"#N/A"}}]
[null,null,null,null,null,null,null,null,null,null,null,null,null,null,null,null,{"$f":"VLOOKUP(P26,'Hardware Selection'!$B$1:$F$27,5)","v":{"$error":"#N/A"}}]
[null,null,null,null,null,null,null,null,null,null,null,null,null,null,null,null,{"$f":"VLOOKUP(P27,'Hardware Selection'!$B$1:$F$27,5)","v":{"$error":"#N/A"}}]
[null,null,null,null,null,null,null,null,null,null,null,null,null,null,null,null,{"$f":"VLOOKUP(P28,'Hardware Selection'!$B$1:$F$27,5)","v":{"$error":"#N/A"}}]
[null,null,null,null,null,null,null,null,null,null,null,null,null,null,null,null,{"$f":"VLOOKUP(P29,'Hardware Selection'!$B$1:$F$27,5)","v":{"$error":"#N/A"}}]
[null,null,null,null,null,null,null,null,null,null,null,null,null,null,null,null,{"$f":"VLOOKUP(P30,'Hardware Selection'!$B$1:$F$27,5)","v":{"$error":"#N/A"}}]
[null,null,null,null,null,null,null,null,null,null,null,null,null,null,null,null,{"$f":"VLOOKUP(P31,'Hardware Selection'!$B$1:$F$27,5)","v":{"$error":"#N/A"}}]
[null,null,null,null,null,null,null,null,null,null,null,null,null,null,null,null,{"$f":"VLOOKUP(P32,'Hardware Selection'!$B$1:$F$27,5)","v":{"$error":"#N/A"}}]
[null,null,null,null,null,null,null,null,null,null,null,null,null,null,null,null,{"$f":"VLOOKUP(P33,'Hardware Selection'!$B$1:$F$27,5)","v":{"$error":"#N/A"}}]
[null,null,null,null,null,null,null,null,null,null,null,null,null,null,null,null,{"$f":"VLOOKUP(P34,'Hardware Selection'!$B$1:$F$27,5)","v":{"$error":"#N/A"}}]
[null,null,null,null,null,null,null,null,null,null,null,null,null,null,null,null,{"$f":"VLOOKUP(P35,'Hardware Selection'!$B$1:$F$27,5)","v":{"$error":"#N/A"}}]
[null,null,null,null,null,null,null,null,null,null,null,null,null,null,null,null,{"$f":"VLOOKUP(P36,'Hardware Selection'!$B$1:$F$27,5)","v":{"$error":"#N/A"}}]
[null,null,null,null,null,null,null,null,null,null,null,null,null,null,null,null,{"$f":"VLOOKUP(P37,'Hardware Selection'!$B$1:$F$27,5)","v":{"$error":"#N/A"}}]
[null,null,null,null,null,null,null,null,null,null,null,null,null,null,null,null,{"$f":"VLOOKUP(P38,'Hardware Selection'!$B$1:$F$27,5)","v":{"$error":"#N/A"}}]
[null,null,null,null,null,null,null,null,null,null,null,null,null,null,null,null,{"$f":"VLOOKUP(P39,'Hardware Selection'!$B$1:$F$27,5)","v":{"$error":"#N/A"}}]
[null,null,null,null,null,null,null,null,null,null,null,null,null,null,null,null,{"$f":"VLOOKUP(P40,'Hardware Selection'!$B$1:$F$27,5)","v":{"$error":"#N/A"}}]
[null,null,null,null,null,null,null,null,null,null,null,null,null,null,null,null,{"$f":"VLOOKUP(P41,'Hardware Selection'!$B$1:$F$27,5)","v":{"$error":"#N/A"}}]
[null,null,null,null,null,null,null,null,null,null,null,null,null,null,null,null,{"$f":"VLOOKUP(P42,'Hardware Selection'!$B$1:$F$27,5)","v":{"$error":"#N/A"}}]
[null,null,null,null,null,null,null,null,null,null,null,null,null,null,null,null,{"$f":"VLOOKUP(P43,'Hardware Selection'!$B$1:$F$27,5)","v":{"$error":"#N/A"}}]
[null,null,null,null,null,null,null,null,null,null,null,null,null,null,null,null,{"$f":"VLOOKUP(P44,'Hardware Selection'!$B$1:$F$27,5)","v":{"$error":"#N/A"}}]
[null,null,null,null,null,null,null,null,null,null,null,null,null,null,null,null,{"$f":"VLOOKUP(P45,'Hardware Selection'!$B$1:$F$27,5)","v":{"$error":"#N/A"}}]
[null,null,null,null,null,null,null,null,null,null,null,null,null,null,null,null,{"$f":"VLOOKUP(P46,'Hardware Selection'!$B$1:$F$27,5)","v":{"$error":"#N/A"}}]
[null,null,null,null,null,null,null,null,null,null,null,null,null,null,null,null,{"$f":"VLOOKUP(P47,'Hardware Selection'!$B$1:$F$27,5)","v":{"$error":"#N/A"}}]
[null,null,null,null,null,null,null,null,null,null,null,null,null,null,null,null,{"$f":"VLOOKUP(P48,'Hardware Selection'!$B$1:$F$27,5)","v":{"$error":"#N/A"}}]
[null,null,null,null,null,null,null,null,null,null,null,null,null,null,null,null,{"$f":"VLOOKUP(P49,'Hardware Selection'!$B$1:$F$27,5)","v":{"$error":"#N/A"}}]
[null,null,null,null,null,null,null,null,null,null,null,null,null,null,null,null,{"$f":"VLOOKUP(P50,'Hardware Selection'!$B$1:$F$27,5)","v":{"$error":"#N/A"}}]
[null,null,null,null,null,null,null,null,null,null,null,null,null,null,null,null,{"$f":"VLOOKUP(P51,'Hardware Selection'!$B$1:$F$27,5)","v":{"$error":"#N/A"}}]
[null,null,null,null,null,null,null,null,null,null,null,null,null,null,null,null,{"$f":"VLOOKUP(P52,'Hardware Selection'!$B$1:$F$27,5)","v":{"$error":"#N/A"}}]
[null,null,null,null,null,null,null,null,null,null,null,null,null,null,null,null,{"$f":"VLOOKUP(P53,'Hardware Selection'!$B$1:$F$27,5)","v":{"$error":"#N/A"}}]
[null,null,null,null,null,null,null,null,null,null,null,null,null,null,null,null,{"$f":"VLOOKUP(P54,'Hardware Selection'!$B$1:$F$27,5)","v":{"$error":"#N/A"}}]
[null,null,null,null,null,null,null,null,null,null,null,null,null,null,null,null,{"$f":"VLOOKUP(P55,'Hardware Selection'!$B$1:$F$27,5)","v":{"$error":"#N/A"}}]
[null,null,null,null,null,null,null,null,null,null,null,null,null,null,null,null,{"$f":"VLOOKUP(P56,'Hardware Selection'!$B$1:$F$27,5)","v":{"$error":"#N/A"}}]
[null,null,null,null,null,null,null,null,null,null,null,null,null,null,null,null,{"$f":"VLOOKUP(P57,'Hardware Selection'!$B$1:$F$27,5)","v":{"$error":"#N/A"}}]
[null,null,null,null,null,null,null,null,null,null,null,null,null,null,null,null,{"$f":"VLOOKUP(P58,'Hardware Selection'!$B$1:$F$27,5)","v":{"$error":"#N/A"}}]
[null,null,null,null,null,null,null,null,null,null,null,null,null,null,null,null,{"$f":"VLOOKUP(P59,'Hardware Selection'!$B$1:$F$27,5)","v":{"$error":"#N/A"}}]
[null,null,null,null,null,null,null,null,null,null,null,null,null,null,null,null,{"$f":"VLOOKUP(P60,'Hardware Selection'!$B$1:$F$27,5)","v":{"$error":"#N/A"}}]
[null,null,null,null,null,null,null,null,null,null,null,null,null,null,null,null,{"$f":"VLOOKUP(P61,'Hardware Selection'!$B$1:$F$27,5)","v":{"$error":"#N/A"}}]
[null,null,null,null,null,null,null,null,null,null,null,null,null,null,null,null,{"$f":"VLOOKUP(P62,'Hardware Selection'!$B$1:$F$27,5)","v":{"$error":"#N/A"}}]
[null,null,null,null,null,null,null,null,null,null,null,null,null,null,null,null,{"$f":"VLOOKUP(P63,'Hardware Selection'!$B$1:$F$27,5)","v":{"$error":"#N/A"}}]

{"sheet":"DATA (don't delete)","index":1,"n_rows":26,"n_cols":16,"rows_kept":26,"cut":false,"hidden":true,"merged":[]}
["DON'T DELETE THIS SHEET"]
[]
["Company Type"]
[]
["General Contractor"]
["Architect"]
["Glass & Glazing Contractor"]
["Door & Hardware Contractor"]
["Other (Specify)"]
[]
["ELEVATION_CONFIG","Frame_Finish","Door_Type","WOOD_FINISH","FSC","Aluminum_Door_Finish","DOOR_GLASS_TYPE","Glass_Size","Wall_Thickness","Lock_Type","AutoMotion\nAuto Operator","Self_Close","Acoustic _Seal","Magnetic_Lock","Rating","Lead_Lined"]
[]
[null,null,null,"N/A","Yes","N/A","N/A","1/4\" Glass by others",null,null,"Yes","Yes","Yes","Yes","smoke rated","Yes"]
["Single Sliding Door","Light Sequin Silver","Flush Wood","White Maple","No","Light Sequin Silver","1/4 Clear Tempered","1/4\" full lite","4 7/8\"",null,"No","No","No","No"," Fire Rated","No"]
["Bi-Parting Pair of Doors","Other (Specify)","Flush Wood with Glass","White Birch",null,"Other (Specify)","1/4\" Obscure Tempered","1/4\" Half Lite","5 1/4\"",null,"N/A","N/A","N/A","N/A","smoke and fire rated","N/A"]
["Inset Single Sliding Door",null,"Aluminum Stile and Rail with Glass","Natural Birch",null,null,"1/4\" Clear Laminated","1/4\" Narrow Vision Lite","5 7/8\""]
["Single Sliding Door with Sidelites or Transom (supply drawing)",null,"Hollow Metal","Red Oak",null,null,"1/4\" Cool White Laminated","3/8\" Glass By Others","7 1/4\""]
["Bi-Parting Pair of Doors with Sidelites or Transom (supply drawing)",null,"Hollow Metal with Glass","Mahogany",null,null,"1\" IGU","3/8\" full lite","Other (Specify)"]
["Inset Dual Sliding Doors",null,null,"Cherry",null,null,"Integral Blinds","3/8\" Half Lite"]
[null,null,null,"Laminate",null,null,"Other (Specify)","3/8\" Narrow Vision Lite"]
[null,null,null,"Other (Specify)",null,null,null,"1/2\" Glass By Others"]
[null,null,null,null,null,null,null,"1/2\" full lite"]
[null,null,null,null,null,null,null,"1/2\" Half Lite"]
[null,null,null,null,null,null,null,"1/2\" Narrow Vision Lite"]
[null,null,null,null,null,null,null,"Custom"]
[null,null,null,null,null,null,null,"N/A"]

{"sheet":"Hardware Selection","index":2,"n_rows":29,"n_cols":6,"rows_kept":29,"cut":false,"hidden":true,"merged":[]}
["AD-1","\nAD5450J-LP-630 (FSIC)\n","(Office)\nDeadbolt Cylinder and Thumbturn with Ladder Pulls","User turns key from outside to lock or unlock door. User operates fixed handle on outside to slide door open. User operates fixed handle inside to slide door closed. User locks door inside by turning thumbturn. User turns thumbturn inside to unlock door. User operates fixed handle on inside to slide door open. \n\n","\nStandard (US32D) Satin Stainless Steel\n\nOptional (US26D) Satin Chrome\nOptional (US19) Black \nOptional (US10B) Satin Bronze",{"$f":"C1&\" \nreplacing - \"&A1","v":"(Office)\nDeadbolt Cylinder and Thumbturn with Ladder Pulls \nreplacing - AD-1"}]
[null,"AD Ladder Pulls","16in BTB Ladder Pulls",null,null,{"$f":"C2","v":"16in BTB Ladder Pulls"}]
[null,"AD-4 (Fire Rated Only) ","Self latching lock with keyed lock and thumbturn ",null,null,{"$f":"C3","v":"Self latching lock with keyed lock and thumbturn "}]
["NEW","AD5440-LP-630","(Privacy)\nDeadbolt with coin turn and Thumbturn with Ladder Pulls\n",null,null,{"$f":"C4","v":"(Privacy)\nDeadbolt with coin turn and Thumbturn with Ladder Pulls\n"}]
["AD-2","AD5440-LP-630-I","(Privacy)\nDeadbolt with Indicator and Thumbturn with Ladder Pulls\n",null,null,{"$f":"C5&\" \nreplacing - \"&A5","v":"(Privacy)\nDeadbolt with Indicator and Thumbturn with Ladder Pulls\n \nreplacing - AD-2"}]
["NEW","AD5440-LP-630-SI","(Privacy)\nDeadbolt with SECTIONAL Indicator and Thumbturn with Ladder Pulls\n","User operates fixed handle from outside to slide door open. User operates fixed handle inside to slide door closed. User locks or unlocks door from inside by turning thumbturn, and indicator on outside indicates ocupied or vacant. User operates fixed handle from inside to slide door open. Coin override allows unlock from outside in event of emergency.","\nStandard (US32D) Satin Stainless Steel\n\nOptional (US26D) Satin Chrome\nOptional (US19) Black \nOptional (US10B) Satin Bronze",{"$f":"C6&\" \nreplacing - \"&A6","v":"(Privacy)\nDeadbolt with SECTIONAL Indicator and Thumbturn with Ladder Pulls\n \nreplacing - NEW"}]
["AD-6","AD5440-LPL-630-I","(Privacy)\nDeadbolt with Indicator and Thumbturn with ladder Pull Exterior and Lever interior\n","User operates fixed handle from outside to slide door open. User operates fixed handle inside to slide door closed. User locks or unlocks door from inside by turning thumbturn, and indicator on outside indicates ocupied or vacant. User operates fixed handle from inside to slide door open. Indicator allows unlock from outside in event of emergency.","\nStandard (US32D) Satin Stainless Steel\n\nOptional (US26D) Satin Chrome\nOptional (US19) Black \nOptional (US10B) Satin Bronze",{"$f":"C7&\"\n replacing - \"&A7","v":"(Privacy)\nDeadbolt with Indicator and Thumbturn with ladder Pull Exterior and Lever interior\n\n replacing - AD-6"}]
["AD-1","AD5450B-LP-630 (SFIC)","(Office)\nDeadbolt Cylinder and Thumbturn with Ladder Pulls","User operates fixed handle from outside to slide door open. User operates fixed handle inside to slide door closed. User locks or unlocks door from inside by turning thumbturn, and indicator on outside indicates ocupied or vacant. User operates fixed handle from inside to slide door open. Indicator ccin override allows unlock from outside in event of emergency.","\nStandard (US32D) Satin Stainless Steel\n\nOptional (US26D) Satin Chrome\nOptional (US19) Black \nOptional (US10B) Satin Bronze","(Office)\nDeadbolt Cylinder and Thumbturn with Ladder Pulls\n replacing - AD-1"]
["AD-1","AD5450P-LP-630\n\n","(Office)\nDeadbolt Cylinder and Thumbturn with Ladder Pulls","User operates fixed handle from outside to slide door open. User operates fixed handle inside to slide door closed. User locks or unlocks door from inside by turning thumbturn, and indicator on outside indicates ocupied or vacant. User operates Lever handle from inside to slide door open.  User rotates lever from inside to automatically release lock (single action egress).  Indicator allows unlock from outside in event of emergency.","\nStandard (US32D) Satin Stainless Steel\n\nOptional (US26D) Satin Chrome\nOptional (US19) Black \nOptional (US10B) Satin Bronze","(Office)\nDeadbolt Cylinder and Thumbturn with Ladder Pulls\n replacing - AD-1"]
["NEW","AD5450P-LP-630-SI","(Privacy With Cylider)\nDeadbolt with SECTIONAL Indicator and Cylinder and Thumbturn with Ladder Pulls\n","User turns key from outside to lock or unlock door. User operates fixed handle from outside to slide door open. User operates fixed handle inside to slide door closed. User locks or unlocks door from inside by turning thumbturn, and indicator on outside indicates ocupied or vacant. User operates fixed handle from inside to slide door open. Indicator ccin override allows unlock from outside in event of emergency.","\nStandard (US32D) Satin Stainless Steel\n\nOptional (US26D) Satin Chrome\nOptional (US19) Black \nOptional (US10B) Satin Bronze","(Privacy With Cylider)\nDeadbolt with SECTIONAL Indicator and Cylinder and Thumbturn with Ladder Pulls\n\n replacing - NEW"]
["AD5","AD5464B-LP-630 (SFIC)","(Cylinder Lock)\nDeadbolt Cylinder locking with Ladder Pulls","User turns key from outside to lock or unlock door. User operates fixed handle on outside to slide door open. User operates fixed handle inside to slide door closed. User locks door inside by turning thumbturn. User turns thumbturn inside to unlock door. User operates fixed handle on inside to slide door open. ","\nStandard (US32D) Satin Stainless Steel\n\nOptional (US26D) Satin Chrome\nOptional (US19) Black \nOptional (US10B) Satin Bronze","(Cylinder Lock)\nDeadbolt Cylinder locking with Ladder Pulls\n replacing - AD5"]
["AD5","AD5464J-LP-630 (FSIC)\n","(Cylinder Lock)\nDeadbolt Cylinder locking with Ladder Pulls","User turns key from outside to lock or unlock door. User operates fixed handle on outside to slide door open. User operates fixed handle inside to slide door closed. User locks door inside by turning thumbturn. User turns thumbturn inside to unlock door. User operates fixed handle on inside to slide door open. ","\nStandard (US32D) Satin Stainless Steel\n\nOptional (US26D) Satin Chrome\nOptional (US19) Black \nOptional (US10B) Satin Bronze","(Cylinder Lock)\nDeadbolt Cylinder locking with Ladder Pulls\n replacing - AD5"]
["AD5","AD5464P-LP-630\n","(Cylinder Lock)\nDeadbolt Cylinder locking with Ladder Pulls","User turns key fro+A6:L16m outside to lock or unlock door. User operates fixed handle on outside to slide door open. User operates fixed handle inside to slide door closed. \n\nOnly to be used in medical room where a patient room has egress and this lock prevents petients from entering staff area. ","\nStandard (US32D) Satin Stainless Steel\n\nOptional (US26D) Satin Chrome\nOptional (US19) Black \nOptional (US10B) Satin Bronze","(Cylinder Lock)\nDeadbolt Cylinder locking with Ladder Pulls\n replacing - AD5"]
["NEW","AD6010-L03-630","(Passage)\nSelf-Latching Lock with Single Action egress passage latch with levers","User turns key from outside to lock or unlock door. User operates fixed handle on outside to slide door open. User operates fixed handle inside to slide door closed. \n\nOnly to be used in medical room where a patient room has egress and this lock prevents petients from entering staff area. ","\nStandard (US32D) Satin Stainless Steel\n\nOptional (US26D) Satin Chrome\nOptional (US19) Black \nOptional (US10B) Satin Bronze","(Passage)\nSelf-Latching Lock with Single Action egress passage latch with levers\n replacing - NEW"]
["AD-9","AD6440-L03-630\n","(Privacy)\nSelf-Latching Lock with Single Action egress, Coin turn overide x Thumbturn with levers","User turns key from outside to lock or unlock door. User operates fixed handle on outside to slide door open. User operates fixed handle inside to slide door closed. \n\nOnly to be used in medical room where a patient room has egress and this lock prevents petients from entering staff area. ","\nStandard (US32D) Satin Stainless Steel\n\nOptional (US26D) Satin Chrome\nOptional (US19) Black \nOptional (US10B) Satin Bronze","(Privacy)\nSelf-Latching Lock with Single Action egress, Coin turn overide x Thumbturn with levers\n replacing - AD-9"]
["AD-9","AD6440-L03-630-I","(Privacy)\nSelf-Latching Lock with Single Action egress Lock, Indicator x Thumbturn with levers","Latchbolt retracted by lever from either side\nat all times. Inside lever always free for immediate egress.","\nStandard (US32D) Satin Stainless Steel\n\nOptional (US26D) Satin Chrome\nOptional (US19) Black \nOptional (US10B) Satin Bronze",{"$f":"C16&\"\n - \"&A16","v":"(Privacy)\nSelf-Latching Lock with Single Action egress Lock, Indicator x Thumbturn with levers\n - AD-9"}]
["NEW","AD6440-L03-630-SI\n","(Privacy)\nSelf-Latching Lock with Single Action egress with SECTIONAL indicator  x Thumbturn with levers"," User rotates lever from outside to slide door open. User rotates lever from inside to slide door closed. User locks door inside by turning thumbturn. User rotates lever from inside to automatically release lock (single action egress). User slides door open.Coin override allows unlock from outside in event of emergency.\n","\nStandard (US32D) Satin Stainless Steel\n\nOptional (US26D) Satin Chrome\nOptional (US19) Black \nOptional (US10B) Satin Bronze",{"$f":"C17&\"\n replacing - \"&A17","v":"(Privacy)\nSelf-Latching Lock with Single Action egress with SECTIONAL indicator  x Thumbturn with levers\n replacing - NEW"}]
["AD-9","AD6450B-L03-630 (SFIC)","(Office)\nSelf-Latching Lock with Single Action egress with Cylinder and Thumbturn with levers"," User rotates lever from outside to slide door open. User rotates lever from inside to slide door closed. User locks door inside by turning thumbturn. User rotates lever from inside to automatically release lock (single action egress). User slides door open.  Indicator allows unlock from outside in event of emergency.\n","\nStandard (US32D) Satin Stainless Steel\n\nOptional (US26D) Satin Chrome\nOptional (US19) Black \nOptional (US10B) Satin Bronze",{"$f":"C18&\"\n - \"&A18","v":"(Office)\nSelf-Latching Lock with Single Action egress with Cylinder and Thumbturn with levers\n - AD-9"}]
["AD-9","AD6450J-L03-630 (FSIC)\n","(Office)\nSelf-Latching Lock with Single Action egress with Cylinder and Thumbturn with levers","User rotates lever from outside to slide door open. User operates lever inside to slide door closed. User rotates thubmturn to lock outside lever. Indicator on outside shows room is occupied/Vacant. User rotates lever from inside to automatically release lock (single action egress). User slides door open. \n\n* Slide indicator on inside shows Locked / Unlocked. \nCoin override allows unlock from outside in event of emergency.","\nStandard (US32D) Satin Stainless Steel\n\nOptional (US26D) Satin Chrome\nOptional (US19) Black \nOptional (US10B) Satin Bronze",{"$f":"C19&\" \nreplacing - \"&A19","v":"(Office)\nSelf-Latching Lock with Single Action egress with Cylinder and Thumbturn with levers \nreplacing - AD-9"}]
["AD-9","AD6450P-L03-630\n","(Office)\nSelf-Latching Lock with Single Action egress with Cylinder and Thumbturn with levers","User turns key from outside to lock or unlock door. User rotates lever from outside to slide door open. User operates lever inside to slide door closed. User rotates thubmturn to lock outside lever. Indicator on outside shows room is occupied/Vacant. User rotates lever from inside to automatically release lock (single action egress). User slides door open. \n\n* Slide indicator on inside shows Locked / Unlocked. \n","\nStandard (US32D) Satin Stainless Steel\n\nOptional (US26D) Satin Chrome\nOptional (US19) Black \nOptional (US10B) Satin Bronze",{"$f":"C20&\" \n - \"&A20","v":"(Office)\nSelf-Latching Lock with Single Action egress with Cylinder and Thumbturn with levers \n - AD-9"}]
["NEW","AD6450P-L03-630-SI","(Privacy)\nSelf-Latching Lock with Single Action egress with SECTIONAL indicator  x Thumbturn with levers","User turns key from outside to lock or unlock door. User rotates lever from outside to slide door open. User rotates lever from inside to slide door closed. User locks door inside by turning thumbturn. User rotates lever from inside to automatically release lock (single action egress). User slides door open.\n","\nStandard (US32D) Satin Stainless Steel\n\nOptional (US26D) Satin Chrome\nOptional (US19) Black \nOptional (US10B) Satin Bronze",{"$f":"C21&\"\n - \"&A21","v":"(Privacy)\nSelf-Latching Lock with Single Action egress with SECTIONAL indicator  x Thumbturn with levers\n - NEW"}]
[null,"ADEL-ELEC1-12V-26D","Self-Latching Lock with Electronic Strike, 16in. ladder pull x Lever egress trim","User turns key from outside to lock or unlock door. User rotates lever from outside to slide door open. User rotates lever from inside to slide door closed. User locks door inside by turning thumbturn. User rotates lever from inside to automatically release lock (single action egress). User slides door open.\n","\nStandard (US32D) Satin Stainless Steel\n\nOptional (US26D) Satin Chrome\nOptional (US19) Black \nOptional (US10B) Satin Bronze",{"$f":"C22&\"\n - \"&A22","v":"Self-Latching Lock with Electronic Strike, 16in. ladder pull x Lever egress trim\n - "}]
[null,"ADEL-ELEC2-12V-26D","Self-Latching Lock with Electronic Strike and Cylinder Override, back to back levers","User turns key from outside to lock or unlock door. User rotates lever from outside to slide door open. User rotates lever from inside to slide door closed. User locks door inside by turning thumbturn. User rotates lever from inside to automatically release lock (single action egress). User slides door open.\n","\nStandard (US32D) Satin Stainless Steel\n\nOptional (US26D) Satin Chrome\nOptional (US19) Black \nOptional (US10B) Satin Bronze",{"$f":"C23&\"\n replacing - \"&A23","v":"Self-Latching Lock with Electronic Strike and Cylinder Override, back to back levers\n replacing - "}]
[null,"ADEL-ELEC3-24V-26D","Self-Latching Lock with Electronic Strike, 16in. ladder pull x Lever egress trim"]
[null,"ADEL-ELEC4-24V-26D","Self-Latching Lock with Electronic Strike and Cylinder Override, back to back levers"]
[null,"Old AD-1  ","Keyed lock with thumbturn and cylinder",null,null,"See AD5450P-LP-630"]
[null,"Old AD-2 ","Privacy lock with thumbturn, indicator, and coin override",null,null,"See AD5440-LP-630-i"]
[null,"Old AD-5 ","Keyed lock from outside only (No thumbturn/egress inside)",null,null,"See AD5464P-LP-630"]
[null,"Old AD-9","Self latching single action egress keyed lock with thumbturn - Office Function",null,null,"See - AD6450P-L03-630"]